Cogmind - Beta 15 @@@ ROGUE MODE // 2025.05.14 @ 17:58:20 Player: sve9 Result: Destroyed by G-34 Mercenary with Small Laser Performance ------------- Evolutions (0) 0 Regions Visited (1) 200 Robots Destroyed (12) 60 Value Destroyed (256) 256 Prototype IDs (0) 0 Alien Tech Used (0) 0 Bonus (0) 0 TOTAL SCORE: 516 Bonus ------- None Cogmind --------- Core Integrity 0/250 Matter 182/300 Energy 99/100 System Corruption 0% Temperature Cool (64) Movement Core (200) Ox3 Location -10/Materials Parts ------- > --- POWER (1) -------- (None) > --- PROPULSION (2) --- Light Treads > --- UTILITY (2) ------ Medium Storage Unit > --- WEAPON (2) ------- Assault Rifle > --- INVENTORY (10) --- Wheel Small Storage Unit Mining Claw Peak State ------------ > --- POWER ------------ Light Ion Engine > --- PROPULSION ------- Light Treads Wheel > --- UTILITY ---------- Small Storage Unit Seismic Detector > --- WEAPON ----------- EM Pulse Gun Assault Rifle > --- INVENTORY -------- Wheel Assault Rifle [Rating: 7] Favorites ----------- Power Ion Engine Engine Ion Engine Propulsion Light Treads Treads Light Treads Wheel Wheel Utility Seismic Detector Device Seismic Detector Storage Medium Storage Unit Weapon Assault Rifle Energy Gun EM Pulse Gun Ballistic Gun Assault Rifle Slashing Weapon Mining Claw Build | -11 -10 ------- Run | Yrd Mat Slots Evolved . | . . Power . | . . Propulsion . | . . Utility . | . . Weapon . | . . Parts Attached 15 | 7 8 Power 3 | 1 2 Engine 3 | 1 2 Core . | . . Reactor . | . . Propulsion 4 | 2 2 Treads 3 | 1 2 Leg . | . . Wheel 1 | 1 . Hover . | . . Flight . | . . Utility 3 | 2 1 Device 1 | 1 . Storage 2 | 1 1 Processor . | . . Hackware . | . . Protection . | . . Artifact . | . . Weapon 5 | 2 3 Energy Gun 1 | 1 . Energy Cannon . | . . Ballistic Gun 3 | 1 2 Ballistic Cannon . | . . Launcher . | . . Special Weapon . | . . Impact Weapon . | . . Slashing Weapon 1 | . 1 Piercing Weapon . | . . Special Melee Weapon . | . . Unidentified Prototypes . | . . Parts Lost 10 | . 10 Power 3 | . 3 Propulsion 3 | . 3 Utility 1 | . 1 Weapon 3 | . 3 Highest Loss Streak 9 | . 9 To Critical Strikes . | . . Average Backups 6 | 1 7 Power 1 | . 1 Propulsion 2 | 1 2 Utility . | . . Weapon 2 | . 2 Tool/Special . | . . Unused Backups 1 | . 1 Power . | . . Propulsion 1 | . 1 Utility . | . . Weapon . | . . Tool/Special . | . . Average Slot Usage (%) 98 | . 98 Engine 13 | . 13 Treads 21 | . 21 Wheel 5 | . 5 Device 13 | . 13 Storage 14 | . 14 Energy Gun 6 | . 6 Ballistic Gun 21 | . 21 Peak Build Rating 7 | 7 7 Average Rating 6 | 5 6 On Entrance 3 | . 7 Naked Turns . | . . Heaviest Build 20 | 13 20 Greatest Support 40 | 20 40 Greatest Overweight (x) 1 | 1 1 Average Overweight (x) . | . . Largest Inventory Capacity 10 | 8 10 Average Capacity 9 | 7 9 Most Carried 9 | 4 9 Average Carried 6 | 2 7 Final Capacity 10 | 8 10 Final Carried 4 | 4 3 Class Distribution -------------------- 100% | Mutant Dominant Class ---------------- Mutant | -10/Materials Resources | -11 -10 ----------- Run | Yrd Mat Matter Collected 413 | 252 161 Remotely . | . . Salvage Created 460 | 92 368 Parts 36 | 9 27 Haulers Intercepted 2 | . 2 Recyclers Shooed 1 | 1 . Parts Field Recycled . | . . Retrieved Matter . | . . Parts Self-Destructed . | . . Prevented . | . . Kills | -11 -10 ------- Run | Yrd Mat Combat Hostiles Destroyed 7 | . 7 Guns 7 | . 7 Classes Destroyed 6 | 2 4 Tunneler 1 | 1 . Hauler 2 | . 2 Recycler 1 | 1 . Watcher 1 | . 1 Swarmer 2 | . 2 Grunt 5 | . 5 Best Kill Streak 2 | 2 2 Combat Bots Only 2 | . 2 Max Kills in Single Turn 1 | 1 1 Gunslinging . | . . Exploded . | . . Melee . | . . Uniques/NPCs Destroyed . | . . Combat | -11 -10 -------- Run | Yrd Mat Hostile Shots Fired 120 | . 120 Missed 26 | . 26 Hits 94 | . 94 Projectile 94 | . 94 Critical Strikes 2 | . 2 Damage Taken 1244 | . 1244 Core 255 | . 255 Absorbed by Shields . | . . Core Remaining (%) 100 | 100 . Volleys Fired 52 | 5 47 Largest 2 | 2 2 Hottest 60 | 60 60 Shots Fired 90 | 10 80 Gun 90 | 10 80 Cannon . | . . Launcher . | . . Special . | . . Kinetic 70 | 5 65 Thermal . | . . Explosive . | . . Electromagnetic 20 | 5 15 Robot Hit Streak 13 | 2 13 Robot Miss Streak 4 | 1 4 Penetration Max . | . . Secondary Targets 2 | . 2 Max Gunslinging Chain 1 | . 1 Shots Hit Robots 60 | 6 54 Core Hits 23 | 3 20 Critical Kills . | . . Critical Parts Destroyed . | . . Critical Strikes . | . . Melee Attacks 1 | . 1 Impact . | . . Slashing 1 | . 1 Piercing . | . . Sneak Attacks . | . . Combat Hostiles . | . . Follow-up Attacks . | . . Damage Inflicted 691 | 76 615 Guns 691 | 76 615 Cannons . | . . Explosions . | . . Melee . | . . Ramming . | . . Kinetic 563 | 48 515 Thermal . | . . Explosive . | . . Electromagnetic 128 | 28 100 Impact . | . . Slashing . | . . Piercing . | . . Highest Corruption . | . . Average Corruption . | . . Corruption Purged . | . . Corruption Blocked . | . . Overload Shots . | . . Overflow Damage . | . . Projectiles . | . . Explosions . | . . Melee . | . . Knockbacks . | . . Impact . | . . Kinetic . | . . Secondary . | . . Self-Inflicted Damage . | . . Shots . | . . Rammed . | . . Targets Rammed . | . . Kicked . | . . Crushed . | . . Highest Temperature 74 | 20 74 Average Temperature 27 | 20 28 Received Heat Transfer 564 | . 564 Siege Activations . | . . Martial Activations . | . . Shielding Activations . | . . Robots Disrupted . | . . Combat Hostiles . | . . Robots Corrupted . | . . Combat Hostiles . | . . Parts Fried . | . . Impact Corruptions . | . . Robots Melted . | . . Combat Hostiles . | . . Parts Melted . | . . Heat Transferred . | . . Parts Sabotaged . | . . Parts Stolen . | . . Parts Stripped . | . . Power Chain Reactions . | . . Alert | -11 -10 ------- Run | Yrd Mat Maximum Alert Level . | . . Low Security (%) 100 | 100 100 Level 1 . | . . Level 2 . | . . Level 3 . | . . Level 4 . | . . Level 5 . | . . High Security . | . . Max Security . | . . Peak Influence 40 | 10 40 Initial . | . . Average 7 | 1 8 Influence Increases 240 | 10 230 Destroy 0b10 Robot/C 140 | . 140 Destroy 0b10 Robot/NC 25 | 10 15 Destroy Leader 36 | . 36 Successful Hack 9 | . 9 Disable Machine 30 | . 30 Influence Decreases 210 | 10 200 Time Decay 168 | 10 158 Lost Part 42 | . 42 Squads Dispatched 3 | . 3 Investigation 2 | . 2 Extermination . | . . Reinforcement 1 | . 1 Assault . | . . Garrison . | . . Intercept . | . . Searches Triggered . | . . Construction Impeded . | . . Haulers Reinforced . | . . Active Scanning Responses . | . . Cargo Convoy Interrupts . | . . Stealth | -11 -10 --------- Run | Yrd Mat Distress Signals 1 | . 1 Communications Jammed . | . . Distress Signals . | . . Times Spotted 18 | . 18 Peak Tracking Total 6 | . 6 Tactical Retreats . | . . Traps | -11 -10 ------- Run | Yrd Mat Traps Triggered 7 | . 7 Indirectly . | . . Trap Hack Attempts . | . . Triggered . | . . Disarmed . | . . Reprogrammed . | . . Reused . | . . Traps Extracted . | . . Installed . | . . Triggered . | . . Machines | -11 -10 ---------- Run | Yrd Mat Machines Disabled 2 | . 2 Max in Single Turn 1 | . 1 Machines Repaired . | . . Machines Dismantled . | . . Machines Sabotaged . | . . Overloaded Fab Kills . | . . Hacking | -11 -10 --------- Run | Yrd Mat Machines Accessed 2 | . 2 Terminals 2 | . 2 Fabricators . | . . Repair Stations . | . . Recycling Units . | . . Scanalyzers . | . . Garrison Access . | . . Total Hacks 6 | . 6 Successful 2 | . 2 Failed 4 | . 4 Catastrophic . | . . Database Lockouts . | . . Manual 6 | . 6 Terminals 6 | . 6 Fabricators . | . . Repair Stations . | . . Recycling Units . | . . Scanalyzers . | . . Garrison Access . | . . Terminal Hacks . | . . Fabricator Hacks . | . . Repair Station Hacks . | . . Recycling Unit Hacks . | . . Scanalyzer . | . . Garrison Access Hacks . | . . Unauthorized Hacks 2 | . 2 Terminals 2 | . 2 Botnet 1 | . 1 Skim 1 | . 1 Fabricators . | . . Repair Stations . | . . Recycling Units . | . . Scanalyzers . | . . Garrison Access . | . . Data Cores Recovered . | . . Used . | . . Hacking Detections 2 | . 2 Full Trace Events . | . . Feedback Events . | . . Feedback Blocked . | . . Robot Schematics Acquired . | . . Robots Built . | . . Authchips . | . . Time . | . . Total Robot Build Rating . | . . Part Schematics Acquired . | . . Parts Built . | . . Authchips . | . . Time . | . . Total Part Build Rating . | . . Parts Repaired . | . . Time . | . . Parts Recycled . | . . Recycled Matter . | . . Retrieved Matter . | . . Retrieved Components . | . . Parts Scanalyzed . | . . Part Schematics Acquired . | . . Parts Damaged . | . . Bothacking | -11 -10 ------------ Run | Yrd Mat Used RIF Installer . | . . Robots Hacked . | . . Non-combat . | . . Combat . | . . Robot Hacks Applied . | . . Relay Couplers Released . | . . Fabnet Peak Effective % . | . . Robots Rewired . | . . Allies Hacked . | . . Hacks Repelled . | . . Allies | -11 -10 -------- Run | Yrd Mat Total Allies . | . . Largest Group . | . . Highest-Rated Group . | . . Highest-Rated Ally . | . . Total Orders . | . . Ally Attacks . | . . Total Damage . | . . Kills . | . . Allies Corrupted . | . . Allies Melted . | . . Intel | -11 -10 ------- Run | Yrd Mat Active Infowar (turns) 622 | 36 586 Seismic 622 | 36 586 Robot Analysis Total . | . . Derelict Logs Recovered . | . . Drone Launches . | . . Drone Recoveries . | . . Exploration | -11 -10 ------------- Run | Yrd Mat Turns Passed 676 | 80 596 Spaces Moved 351 | 53 298 Core 1 | 1 . Treads 193 | 3 190 Legs . | . . Wheels 157 | 49 108 Hover . | . . Flight . | . . Fastest Speed 50 | 50 95 Average Speed 130 | 95 136 Slowest Speed 160 | 160 160 Overloaded Moves . | . . Propulsion Burnouts . | . . Robots Hopped . | . . Potential Cave-ins . | . . Cave-ins Triggered . | . . Exploration Rate (%) 31 | 4 59 Regions Visited 1 Branch Regions . Pre-discovered Areas . | . . Known Exits Taken . | . . Unknown Exits Taken 1 | 1 . Scrap Searched . | . . Spaces Dug . | . . Terrain Destroyed . | . . Melee . | . . Projectile . | . . AOE . | . . Terrain Rammed . | . . Walls Destroyed . | . . Machines Disabled . | . . Actions | -11 -10 --------- Run | Yrd Mat Total 476 | 68 408 Wait 45 | . 45 Move 350 | 52 298 Hop . | . . Pick Up 5 | 4 1 Fast Attach 10 | 7 3 Attach 6 | . 6 Detach 2 | . 2 Swap 5 | . 5 Drop . | . . Fire 52 | 5 47 Melee 1 | . 1 Ram . | . . Kick . | . . Crush . | . . Escape Stasis . | . . Rewire . | . . Trap . | . . Miscellaneous . | . . Route ------- -11/Scrapyard -10/Materials (discovered 2 exits: [*Mat] / [*Min]) History --------- Turn | Location | Event 21 | -11/Scrapyard | Discovered new exit (range 15) 81 | -11/Scrapyard | Entered Materials 187 | -10/Materials | Discovered new exit (range 16) 313 | -10/Materials | Build established: Mutant 553 | -10/Materials | Discovered new exit (range 7) 648 | -10/Materials | Core integrity fell below 50% 674 | -10/Materials | Core integrity fell below 20% 677 | -10/Materials | Destroyed by G-34 Mercenary with Small Laser Last Messages --------------- 00647_ R-06 Scavenger collects Lgt. Ion Engine. 00649_ Lgt. Treads destroyed. 00650_ K-01 Serf collects debris. 00650_ Lgt. Assault Rifle destroyed. 00651_ Lgt. Ion Engine destroyed. 00653_ R-06 Scavenger inserts Flight Unit into recycling unit. 00653_ Assault Rifle destroyed. 00654_ K-01 Serf collects debris. 00657_ EM Pulse Gun destroyed. 00657_ Critical hit (Burn: +37). 00658_ K-01 Serf collects debris. 00666_ R-06 Scavenger inserts Flight Unit into recycling unit. 00667_ Seismic Detector destroyed. 00668_ K-01 Serf collects debris. 00668_ Wheel destroyed. 00673_ K-01 Serf collects debris. 00673_ Lgt. Ion Engine destroyed. 00677_ G-47 Trooper destroyed. Map ----- +----------------------------------------------------+ | | | | | | | | | ?????#############???????????????????????????????? | | ?????# #???????????????????????????????? | | ?????#* """ #???????????????????????????????? | | ?????# """ ! #???????????????????????????????? | | ?????# """ #????#####??????????????????????? | | #????# #????# #??????????????????????? | | ##???# #????# < #??????????????????????? | | "#???# #????# #??????????????????????? | | #???######+######????# #??????????????????????? | | #??????# ######### ########???????????????? | | #??????# # ] #???????????????? | | #??????# ! # #???????????????? | | #???????# ! r # " " #???????????????? | | ????????# ######### # "R" #???????????????? | | ########## ## # # """ #???????????????? | | #?# + + #???????????????? | | #?# # ########???????????????? | | #?######## g#??????????????????????? | | ##???????# g #??????????????????????? | | ^ #######?# w #??????????????????????? | | ## """ # #??????????????????????? | | ^ " " ## "Y" # [@#??????????????????????? | | """ """ ## + %%############+#?????????? | | """ """ ## [ # %k! """ ? ???????? | | """ """ ## # g= "T" ??? | | "" "" ##[ !?# ??? | | """ """ #######?# ###???????? | | "" "" #???????# % """ #?????????? | | "" "" #???????# """ """ #?????????? | | " " #???????# """ """ #?????????? | | #???????# #????????? | | #???????# #????????? | | % #???????# #????????? | | = #???????############### #????????? | | ##+##### #???????????????????????? #????????? | | ## #??????????????????????????????????? | | ## #??????????????????????????????????? | | ## * #??????????????????????????????????? | | ##[ #??????????????????????????????????? | | +%! #??????????????????????????????????? | | #=% #??????????????????????????????????? | | #####+#= #??????????????????????????????????? | | #??????????????????????????????????? | | ########+######??????????????????????????????????? | | # ^ #??????????????????????????????????????? | | # ^ "T" #??????????????????????????????????????? | +----------------------------------------------------+ Best States ------------- Heat Dissipation 25 Energy Generation 10 Energy Capacity 250 Matter Stores 300 Matter Capacity 300 Sight Range 16 Terrain Scan Density 10 Evasion (%) 44 Recoil Reduction 2 Item Schematics ----------------- None Robot Schematics ------------------ None Fabricated ------------ Nothing Repaired ---------- Nothing Alien Tech Used ----------------- None Achievements -------------- None Challenges ------------ None Game ------ Seed RelayPiercingSpiker Manual? 0 Play Time 00:09:46 Cumulative 93.9 hours Start 2025.05.14 @ 17:50:30 End 2025.05.14 @ 17:58:20 Sessions 1 Manual Loads 0 Difficulty Rogue Special Mode None Game No. 40 Rogue 40 Adventurer 0 Explorer 0 Win Type - Total 11 Types 10/0/0/1/0/0/0/0/0/0 Lore% 55 Gallery% 52 Achievement% 53 Wizard Run 0 Options --------- Layout 1 ASCII 1 Keyboard 0 Movement Vi Keybinds 0 Fullscreen 1 Font 18/SmallcapsGlow Map View 54x44 Zoom Use 0% Tactical HUD 1 Map Filters NONE Filters NONE Steam 0 RUN: 6617dc9f-0a36-42fd-921a-dada0436b397